bitfinex-derivatives/quotes_BNBF0:USTF0_20250115
["timestamp","ask_amount","ask_price","bid_price","bid_amount"]
[1736948471581,0.26360948,697.92,696.15,0.2872944]
[1736948472780,1.0636608,697.75,696.15,0.2872944]
[1736948472988,0.26360948,697.74,696.15,0.2872944]
[1736948473485,0.26376743,697.73,696.15,0.2872944]
[1736948473783,1.0636608,697.75,696.15,0.2872944]
[1736948473784,0.26376743,697.72,696.15,0.2872944]
[1736948474185,1.0636608,697.65,696.15,0.2872944]
[1736948474487,0.26376743,697.64,696.15,0.2872944]
[1736948475285,0.26376743,697.63,696.15,0.2872944]
[1736948475483,0.26376743,697.62,696.15,0.2872944]
[1736948475682,0.26376743,697.61,696.15,0.2872944]
[1736948475983,1.49851978,697.77,696.15,0.2872944]
[1736948475984,0.26376743,697.6,696.15,0.2872944]
[1736948476178,0.26376743,697.59,696.15,0.2872944]
[1736948476381,0.26376743,697.58,696.15,0.2872944]
[1736948476581,0.26376743,697.76,696.15,0.2872944]
[1736948476780,0.26376743,697.75,696.15,0.2872944]
[1736948477085,0.26376743,697.74,696.15,0.2872944]
[1736948477286,0.26376743,697.73,696.15,0.2872944]
[1736948477586,0.26376743,697.72,696.15,0.2872944]
[1736948477781,0.26376743,697.71,694.62,1.04010507]
[1736948477982,0.26376743,697.7,694.62,1.04010507]
[1736948478183,1.49851978,697.77,694.32,1.04010507]
[1736948478184,1.0636608,697.45,694.32,1.04010507]
[1736948478382,0.26376743,697.44,694.33,1.62446702]
[1736948478580,0.26376743,697.44,694.34,3.58456322]
[1736948478782,0.26376743,697.43,694.35,2.48624126]
[1736948478986,0.26376743,697.42,694.5,0.28797696]
[1736948479186,0.26389888,697.41,694.51,2.48624126]
[1736948479381,0.26389888,697.56,694.52,2.4861249]
[1736948479586,1.0636608,697.57,694.5,0.28797696]
[1736948479587,0.26389888,697.4,694.53,2.4861249]
[1736948479787,0.26389888,697.39,694.54,2.4861249]
[1736948479988,0.26389888,697.39,694.55,2.4861249]
[1736948480188,0.26389888,697.38,694.56,2.4861249]
[1736948480386,1.0636608,697.64,694.56,2.4861249]
[1736948480387,0.26389888,697.37,694.57,2.4861249]
[1736948480590,0.26389888,697.36,694.58,2.4861249]
[1736948480785,0.26389888,697.35,694.67,1.04010507]
[1736948480993,0.26389888,697.34,694.68,2.4861249]
[1736948481190,0.26389888,697.33,694.69,2.4861249]
[1736948481490,0.26389888,697.32,694.7,2.4861249]
[1736948481690,0.26389888,697.31,694.71,2.4861249]
[1736948481990,0.26389888,697.3,694.72,2.4861249]
[1736948482185,0.26389888,697.29,694.73,2.4861249]
[1736948482390,0.26389888,697.28,694.74,2.4861249]
[1736948482590,0.26389888,697.27,694.75,5.20891388]
[1736948482791,0.26389888,697.26,694.76,2.4861249]
[1736948483089,0.26385191,697.75,694.75,2.72278898]
[1736948483289,0.26385191,697.25,694.75,2.72278898]
[1736948483491,0.26385191,697.24,694.75,2.72278898]
[1736948483690,0.26385191,697.75,694.57,2.72278898]
[1736948483883,0.26385191,697.74,694.58,1.61711555]
[1736948484085,1.0636608,697.84,694.58,1.61711555]
[1736948484086,0.26385191,697.73,694.58,1.61711555]
[1736948484287,0.26385191,697.72,694.58,1.61711555]
[1736948484587,0.26385191,697.71,694.57,2.72278898]
[1736948484789,0.26385191,697.7,694.57,2.72278898]
[1736948484990,0.26385191,697.69,694.57,2.72278898]
[1736948485290,0.26385191,697.68,694.56,1.49922454]
[1736948485484,0.26385191,697.67,694.56,1.49922454]
[1736948485689,0.26390522,697.66,694.56,1.49922454]
[1736948485886,0.26390522,697.65,694.57,5.19001072]
[1736948486086,0.99623086,697.64,694.58,2.4778251]
[1736948486288,0.99623086,697.63,694.59,2.4778251]
[1736948486490,0.99623086,697.62,694.6,2.4778251]
[1736948486692,0.26390522,697.61,694.61,1.61614116]
[1736948486885,1.0636608,697.76,694.57,2.71218562]
[1736948487089,0.26390522,697.6,694.58,2.47553023]
[1736948487394,0.26390522,697.75,694.59,2.47553023]
[1736948487592,1.0636608,697.76,694.6,1.61412959]
[1736948487593,0.26390522,697.74,694.6,1.61412959]
[1736948487787,0.26390522,697.73,694.61,2.47552673]
[1736948487997,0.26390522,697.72,694.62,5.18771235]
[1736948488292,0.26390522,698.13,694.62,2.71218562]
[1736948488493,0.26390522,698.12,694.56,1.49922454]
[1736948488689,0.26390522,698.13,694.56,1.49922454]
[1736948488892,0.26390522,698.12,694.56,1.49922454]
[1736948489095,0.26390522,698.11,694.56,1.49922454]
[1736948489287,0.26390522,698.1,694.56,1.49922454]
[1736948489489,0.26390522,698.09,694.56,1.49922454]
[1736948489694,0.73232564,698.98,694.56,1.49922454]
[1736948489695,0.26390522,698.08,694.56,1.49922454]
[1736948489994,0.26390522,698.07,694.56,1.49922454]
[1736948490194,0.26390522,698.06,694.56,1.49922454]
[1736948490495,0.73232564,698.59,694.56,1.49922454]
[1736948490496,1.0636608,698.04,694.56,1.49922454]
[1736948490695,0.99623086,698.03,694.57,2.47530053]
[1736948490896,0.99623086,698.02,694.58,2.47530053]
[1736948491198,0.99623086,698.01,694.59,2.47530053]
[1736948491398,0.99623086,698.01,694.6,2.47530053]
[1736948491399,1.0636608,697.77,694.6,2.47530053]
[1736948491597,1.0636608,697.77,694.59,2.7077705]
[1736948491598,0.99623086,697.76,694.61,2.47530053]
[1736948491796,0.99623086,697.75,694.62,2.47530053]
[1736948491998,0.263873,697.74,694.59,2.7077705]
[1736948492198,0.263873,697.73,694.5,0.28797696]
[1736948492500,0.263873,697.72,694.5,0.28797696]
[1736948492700,1.0636608,698.07,694.5,0.28797696]
[1736948492701,0.263873,697.71,694.5,0.28797696]
[1736948492900,0.263873,697.7,694.5,0.28797696]
[1736948493101,0.263873,697.69,694.51,5.18218926]
[1736948493296,0.263873,697.68,694.52,2.47482666]
[1736948493501,1.0636608,698.18,694.51,2.7073626]
[1736948493502,0.263873,697.67,694.53,2.47482666]
[1736948493702,0.263873,697.66,694.54,2.47482666]
[1736948494004,1.0636608,697.74,694.55,1.61318714]
[1736948494200,0.26385957,697.73,694.56,2.47473861]
[1736948494398,0.26385957,697.72,694.57,2.47473861]
[1736948494600,0.26385957,697.72,694.58,2.47473861]
[1736948494601,0.26385957,697.71,694.58,2.47473861]
[1736948494798,0.99608919,697.7,694.59,5.17971623]
[1736948495000,0.99608919,697.69,694.6,2.47473861]
[1736948495300,0.26385957,697.68,694.61,2.47473861]
[1736948495604,1.0636608,697.59,694.62,2.47473861]
[1736948495801,0.26385957,697.58,694.63,2.47473861]
[1736948496098,0.26385957,697.57,694.64,5.17971623]
[1736948496297,0.26385957,697.56,694.65,2.47473861]
[1736948496495,0.26385957,697.55,694.67,1.04010507]
[1736948496696,0.26385957,697.54,694.68,2.47473861]
[1736948496899,0.26374056,697.53,694.69,2.47473861]
[1736948497099,0.26374056,697.52,694.7,2.47473861]
[1736948497399,0.26374056,697.51,694.71,2.47473861]
[1736948497600,0.26374056,697.5,694.72,5.17971623]
[1736948497796,0.26374056,697.49,694.73,2.47473861]
[1736948498005,0.26374056,697.49,694.74,2.47473861]
[1736948498299,0.26374056,697.48,694.75,2.47473861]
[1736948498497,0.26374056,697.47,694.76,2.47473861]
[1736948498702,0.26374056,697.46,695.04,1.04010507]
[1736948498897,0.26374056,697.45,695.05,2.47473861]
[1736948499101,0.26374056,697.44,695.06,5.17971623]
[1736948499301,1.0636608,697.82,695.06,5.17971623]
[1736948499302,0.26374056,697.43,695.07,2.47473861]
[1736948499503,0.26374056,697.42,695.08,2.47473861]
[1736948499702,0.26366071,697.41,695.13,1.04010507]
[1736948499899,0.26366071,697.81,695.14,2.47473861]
[1736948500103,0.26366071,697.8,695.15,2.47473861]
[1736948500302,0.26366071,697.79,695.13,1.04010507]
[1736948500500,0.26366071,697.81,695.13,1.04010507]
[1736948500806,0.26366071,697.8,695.19,1.04010507]
[1736948501105,0.26366071,697.79,695.19,1.04010507]
[1736948501406,0.26366071,697.78,695.01,1.04010507]
[1736948501705,0.26366071,697.77,695.02,1.60851306]
[1736948501903,0.26366071,698.02,695.02,1.60851306]
[1736948502206,0.26366071,698.01,695.17,0.28769941]
[1736948502406,0.26366071,698.0,695.17,0.28769941]
[1736948502607,1.27639296,698.66,695.17,0.28769941]
[1736948502608,0.26365146,697.99,695.17,0.28769941]
[1736948502806,0.26365146,697.98,695.17,0.28769941]
[1736948503003,0.26365146,697.97,695.17,0.28769941]
[1736948503203,0.26365146,697.96,695.17,0.28769941]
[1736948503400,1.0636608,697.99,695.17,0.28769941]
[1736948503600,0.26365847,697.95,695.18,1.60875334]
[1736948503803,0.26365847,697.94,695.18,1.60875334]
[1736948504006,1.0636608,697.99,695.18,1.60875334]
[1736948504007,0.26365847,697.93,695.18,1.60875334]
[1736948504208,1.0636608,697.91,695.19,2.69981401]
[1736948504404,0.26365847,697.9,695.2,1.60875334]
[1736948504601,0.26365847,697.89,695.2,1.60875334]
[1736948504803,0.26365847,697.88,695.2,1.60875334]
[1736948505103,0.26365847,697.87,695.21,1.04010507]
[1736948505305,1.0636608,697.93,695.22,1.60875334]
[1736948505508,0.26364228,697.92,695.23,0.86087322]
[1736948505704,0.26364228,697.91,695.24,1.60875334]
[1736948505908,0.26364228,697.9,695.25,0.86087322]
[1736948506108,0.26364228,697.89,695.26,4.30856735]
[1736948506310,0.26364228,697.88,695.26,2.69981401]
[1736948506512,1.0636608,697.83,695.29,1.04010507]
[1736948506711,0.26364228,697.82,695.29,1.04010507]
[1736948507509,0.26364228,697.82,695.17,0.28769941]
[1736948507711,0.26364228,697.92,695.17,0.28769941]
[1736948507905,0.26364228,697.91,695.17,0.28769941]
[1736948508109,1.0636608,697.9,695.17,0.28769941]
[1736948508311,1.32728502,697.9,695.17,0.28769941]
[1736948508511,0.26362422,697.89,695.17,0.28769941]
[1736948509112,1.0636608,697.9,695.17,0.28769941]
[1736948509113,0.26362293,697.88,695.17,0.28769941]
[1736948509514,0.26362293,697.87,695.17,0.28769941]
[1736948509913,0.26362293,698.16,695.17,0.28769941]
[1736948510113,0.26362293,698.15,695.17,0.28769941]
[1736948510313,0.28641805,698.28,695.17,0.28769941]
[1736948510314,1.0636608,698.14,695.17,0.28769941]
[1736948510514,0.26362293,698.13,695.17,0.28769941]
[1736948511217,0.26362723,698.12,695.17,0.28769941]
[1736948511519,0.26362723,698.11,695.17,0.28769941]
[1736948511715,0.26362723,698.1,695.17,0.28769941]
[1736948511921,0.26362723,698.09,695.17,0.28769941]
[1736948512119,0.26362723,698.08,695.17,0.28769941]
[1736948512320,1.0636608,698.06,695.17,0.28769941]
[1736948512520,0.26362723,698.05,695.18,2.4718114]
[1736948512723,0.99536465,698.04,695.19,1.61074299]
[1736948513021,0.99536465,698.03,695.17,0.28769941]
[1736948513222,0.99536465,698.02,695.18,1.6119955]
[1736948513418,1.0636608,697.57,695.18,1.6119955]
[1736948513620,0.26362723,697.56,695.18,1.6119955]
[1736948513821,1.0636608,697.57,695.18,1.6119955]
[1736948514122,0.26375493,697.56,695.18,1.6119955]
[1736948514319,1.0636608,697.54,695.19,0.86115365]
[1736948514521,0.26375493,697.53,695.2,1.6119955]
[1736948514722,0.26375493,697.52,695.21,3.56732385]
[1736948514921,0.26375493,697.51,695.22,2.47314915]
[1736948515124,0.26375493,697.5,695.23,2.47314915]
[1736948515318,0.26375493,697.49,695.24,2.47320528]
[1736948515523,0.26375493,697.48,695.25,2.47320528]
[1736948515724,0.26375493,697.47,695.36,0.2876208]
[1736948516024,0.26375493,697.46,695.37,1.6119955]
[1736948516224,0.26375493,697.45,695.38,2.4731259]
[1736948516417,0.26375493,697.45,695.36,0.2876208]
[1736948516418,0.26375493,697.44,695.39,5.18143881]
[1736948516617,1.0636608,697.6,695.4,2.4731259]
[1736948516822,0.26371685,697.59,695.39,2.70831291]
[1736948517021,0.26371685,697.58,695.39,2.70831291]
[1736948517226,0.26371685,697.57,695.39,2.70831291]
[1736948517421,0.26371685,697.57,695.36,0.2876208]
[1736948517422,0.2637066,697.56,695.36,0.2876208]
[1736948517623,0.2637066,697.6,695.36,0.2876208]
[1736948517826,0.2637066,697.59,695.36,0.2876208]
[1736948518021,0.2637066,697.73,695.36,0.2876208]
[1736948518326,0.2637066,697.72,695.36,0.2876208]
[1736948518523,0.2637066,697.71,695.36,0.2876208]
[1736948518724,0.2637066,697.7,695.36,0.2876208]
[1736948518919,0.2637066,697.69,695.36,0.2876208]
[1736948519124,0.2637066,697.68,695.36,0.2876208]
[1736948519320,0.2637066,697.67,695.36,0.2876208]
[1736948519526,1.0636608,697.76,695.36,0.2876208]
[1736948519725,0.26373661,697.75,695.36,0.2876208]
[1736948519925,1.0636608,697.7,695.36,0.2876208]
[1736948520126,0.26373661,697.69,695.36,0.2876208]
[1736948520327,0.26373661,697.68,695.36,0.2876208]
[1736948520526,0.26373661,697.67,695.36,0.2876208]
[1736948520728,0.26373661,697.66,695.36,0.2876208]
[1736948520932,1.0636608,697.58,695.36,0.2876208]
[1736948521129,0.26373661,697.57,695.36,0.2876208]
[1736948521425,1.0636608,697.58,695.36,0.2876208]
[1736948521626,0.26383548,697.57,695.36,0.2876208]
[1736948521822,0.26383548,697.56,695.36,0.2876208]
[1736948522029,0.26383548,697.55,695.36,0.2876208]
[1736948522329,1.0636608,697.32,695.36,0.2876208]
[1736948522528,0.26383548,697.31,695.36,0.2876208]
[1736948522731,1.0636608,697.32,695.36,0.2876208]
[1736948522732,0.26383548,697.3,695.36,0.2876208]
[1736948523029,0.26383548,697.29,695.36,0.2876208]
[1736948523226,0.26383548,697.28,695.36,0.2876208]
[1736948523429,1.0636608,697.32,695.36,0.2876208]
[1736948523430,0.26383548,697.27,695.36,0.2876208]
[1736948523629,0.26383548,697.26,695.36,0.2876208]
[1736948523832,1.0636608,697.31,695.36,0.2876208]
[1736948523833,0.26383548,697.25,695.36,0.2876208]
[1736948524032,0.26383548,697.24,695.36,0.2876208]
[1736948524231,0.26383548,697.23,695.36,0.2876208]
[1736948524434,1.0636608,697.31,695.36,0.2876208]
[1736948524633,0.73212832,698.08,695.36,0.2876208]
[1736948524634,0.26379223,697.3,695.36,0.2876208]
[1736948524829,0.26379223,697.36,695.36,0.2876208]
[1736948525028,0.26379223,697.35,695.36,0.2876208]
[1736948525228,0.26379223,697.36,695.36,0.2876208]
[1736948525430,0.26379223,697.35,695.36,0.2876208]
[1736948525829,0.26379223,697.34,695.36,0.2876208]
[1736948526029,0.26379223,697.33,695.36,0.2876208]
[1736948526432,0.26379223,697.32,695.36,0.2876208]
[1736948526834,0.26381893,697.31,695.36,0.2876208]
[1736948527136,0.26381893,697.3,695.36,0.2876208]
[1736948527335,1.0636608,697.53,695.36,0.2876208]
[1736948527536,0.26384488,697.52,695.36,0.2876208]
[1736948527732,0.26384488,697.51,695.36,0.2876208]
[1736948528034,0.26384488,697.5,695.36,0.2876208]
[1736948528235,0.26384488,697.49,695.36,0.2876208]
[1736948528432,1.0636608,697.27,695.36,0.2876208]
[1736948528637,0.26384488,697.26,695.36,0.2876208]
[1736948528831,0.26384488,697.25,695.36,0.2876208]
[1736948529034,0.26384488,697.24,695.36,0.2876208]
[1736948529336,0.26384488,697.23,695.36,0.2876208]
[1736948529537,1.35041148,697.47,695.36,0.2876208]
[1736948529538,0.26384488,697.22,695.36,0.2876208]
[1736948529737,0.26384488,697.21,695.36,0.2876208]
[1736948529929,0.26384488,697.2,695.36,0.2876208]
[1736948530137,0.26384488,697.19,695.36,0.2876208]
[1736948530335,1.0636608,697.24,695.36,0.2876208]
[1736948530336,0.26391875,697.18,695.36,0.2876208]
[1736948530530,1.0636608,697.13,695.36,0.2876208]
[1736948530737,0.26391875,697.12,695.36,0.2876208]
[1736948532037,0.26391875,697.11,695.36,0.2876208]
[1736948532337,0.26391875,697.1,695.36,0.2876208]
[1736948532637,0.26391875,697.09,695.36,0.2876208]
[1736948532833,0.26391875,697.08,695.36,0.2876208]
[1736948533036,0.26397795,697.07,695.36,0.2876208]
[1736948533236,0.26397795,697.06,695.36,0.2876208]
[1736948533533,0.26397795,697.05,695.36,0.2876208]
[1736948533741,1.0636608,697.16,695.36,0.2876208]
[1736948533942,0.26398007,697.15,695.36,0.2876208]
[1736948534241,0.26398007,697.14,695.36,0.2876208]
[1736948534435,0.26398007,697.13,695.36,0.2876208]
[1736948534635,0.26398007,697.12,695.36,0.2876208]
[1736948534832,0.26398007,697.11,695.36,0.2876208]
[1736948535038,0.26398007,697.1,695.36,0.2876208]
[1736948535239,0.26398007,697.09,695.36,0.2876208]
[1736948535538,0.26398007,697.08,695.36,0.2876208]
[1736948535733,1.0636608,697.17,695.36,0.2876208]
[1736948535734,0.26398007,697.07,695.36,0.2876208]
[1736948535934,0.2640797,697.06,695.36,0.2876208]
[1736948536141,0.2640797,697.05,695.36,0.2876208]
[1736948536341,0.2640797,697.04,695.36,0.2876208]
[1736948536541,0.2640797,697.03,695.36,0.2876208]
[1736948536739,0.2640797,697.02,695.36,0.2876208]
[1736948536939,0.2640797,697.01,695.36,0.2876208]
[1736948537140,0.2640797,697.0,695.36,0.2876208]
[1736948537335,1.0636608,697.2,695.36,0.2876208]
[1736948537336,0.2640797,696.99,695.36,0.2876208]
[1736948537541,0.2640797,696.98,695.36,0.2876208]
[1736948537842,0.28675068,697.47,695.36,0.2876208]
[1736948537843,0.2640797,696.97,695.36,0.2876208]
[1736948538140,0.2640797,696.96,695.36,0.2876208]
[1736948538342,0.28696874,696.94,695.36,0.2876208]
[1736948538541,0.2640797,696.93,695.36,0.2876208]
[1736948538743,0.26408612,696.92,695.36,0.2876208]
[1736948538940,0.26408612,696.91,695.36,0.2876208]
[1736948539136,0.26408612,696.9,694.08,1.04010507]
[1736948539339,0.26408612,696.89,694.22,0.28809311]
[1736948539537,0.26408612,696.88,694.22,0.28809311]
[1736948539843,0.26408612,696.87,694.22,0.28809311]
[1736948540142,0.26408612,696.86,694.22,0.28809311]
[1736948540342,0.26408612,696.85,694.22,0.28809311]
[1736948540643,0.26408612,696.84,694.22,0.28809311]
[1736948540842,0.26408612,696.83,694.22,0.28809311]
[1736948541037,0.26408612,696.82,694.22,0.28809311]
[1736948541343,0.28696874,696.94,694.22,0.28809311]
[1736948541344,0.26408612,696.81,694.22,0.28809311]
[1736948541644,0.26408612,696.8,694.22,0.28809311]
[1736948541944,0.26408612,696.79,694.23,2.48044393]
[1736948542244,0.26407958,696.78,694.22,0.28809311]
[1736948542444,0.26407958,696.93,694.22,0.28809311]
[1736948542643,0.26407958,696.77,694.22,0.28809311]
[1736948542846,0.26407958,696.76,694.22,0.28809311]
[1736948543045,0.26407958,696.75,694.22,0.28809311]
[1736948543347,0.28696874,696.94,694.22,0.28809311]
[1736948543348,0.996779,696.74,694.22,0.28809311]
[1736948543543,0.996779,696.73,694.22,0.28809311]
[1736948543745,0.996779,696.72,694.22,0.28809311]
[1736948544050,0.996779,696.71,694.22,0.28809311]
[1736948544245,0.26407958,696.7,694.22,0.28809311]
[1736948544547,0.26407958,696.69,694.22,0.28809311]
[1736948544743,1.0636608,696.91,694.22,0.28809311]
[1736948544940,0.26410099,696.9,694.22,0.28809311]
[1736948545744,0.26410099,696.89,694.23,1.50093269]
[1736948545946,0.26410099,696.88,694.23,1.50093269]
[1736948546245,0.26410099,696.87,694.23,1.50093269]
[1736948546442,0.26410099,696.93,694.23,1.50093269]
[1736948546649,0.26410099,696.92,694.23,1.50093269]
[1736948546946,0.26410099,696.91,694.23,1.50093269]
[1736948547248,0.26410099,696.9,694.23,1.50093269]
[1736948547451,0.26410099,696.89,694.23,1.50093269]
[1736948547640,0.26410099,696.88,694.23,1.50093269]
[1736948547947,0.26411284,696.87,694.23,1.50093269]
[1736948548148,0.26411284,696.86,694.23,1.50093269]
[1736948548349,0.26411284,696.85,694.23,1.50093269]
[1736948548549,0.26411284,696.84,694.23,1.50093269]
[1736948548742,0.26411284,696.83,694.23,1.50093269]
[1736948548945,0.26411284,696.82,694.23,1.50093269]
[1736948549146,0.28696874,696.94,694.23,1.50093269]
[1736948549147,0.26411284,696.81,694.23,1.50093269]
[1736948549348,0.26411284,696.8,694.23,1.50093269]
[1736948549544,0.26411284,696.79,694.23,1.50093269]
[1736948549749,0.26411284,696.78,694.23,1.50093269]
[1736948550047,0.26411284,696.77,694.23,1.50093269]
[1736948550250,0.26411284,696.76,694.23,1.50093269]
[1736948550450,0.26411284,696.75,694.23,1.50093269]
[1736948550652,0.26417125,696.74,694.23,1.50093269]
[1736948550950,0.99706078,696.73,694.23,1.50093269]
[1736948551146,0.28696874,696.94,694.23,1.50093269]
[1736948551147,0.26417125,696.72,694.23,1.50093269]
[1736948551448,0.26415429,696.71,694.23,1.50093269]
[1736948551746,0.26415429,696.7,694.23,1.50093269]
[1736948551948,0.26415429,696.69,694.23,1.50093269]
[1736948552148,0.26415429,696.68,694.23,1.50093269]
[1736948552343,0.26415429,696.67,694.23,1.50093269]
[1736948552550,0.26415429,696.66,694.23,1.50093269]
[1736948552745,0.26415429,696.65,694.23,1.50093269]
[1736948552951,1.0636608,696.75,694.23,1.50093269]
[1736948552952,0.26415429,696.64,694.23,1.50093269]
[1736948553145,0.26415429,696.63,694.23,1.50093269]
[1736948553350,0.26415429,696.62,694.23,1.50093269]
[1736948553549,0.26415609,696.61,694.23,1.50093269]
[1736948553747,0.26415609,696.6,694.23,1.50093269]
[1736948553950,0.26415609,696.59,694.23,1.50093269]
[1736948554150,0.26415609,696.58,694.23,1.50093269]
[1736948554345,0.26415609,696.57,694.23,1.50093269]
[1736948554546,0.26415609,696.56,694.23,1.50093269]
[1736948554748,0.26415609,696.55,694.23,1.50093269]
[1736948555051,0.26415609,696.54,694.23,1.50093269]
[1736948555251,0.26415609,696.53,694.23,1.50093269]
[1736948555447,0.26415609,696.52,694.23,1.50093269]
[1736948555644,0.26420329,696.52,694.23,1.50093269]
[1736948555846,0.26420329,696.51,694.23,1.50093269]
[1736948556045,0.26420329,696.5,694.23,1.50093269]
[1736948556351,0.26419775,696.49,694.23,1.50093269]
[1736948556552,0.26419775,696.48,694.23,1.50093269]
[1736948556754,0.99714428,696.47,694.23,1.50093269]
[1736948557053,2.06080508,696.46,694.23,1.50093269]
[1736948557253,0.99714428,696.45,694.23,1.50093269]
[1736948557454,0.99714428,696.44,694.23,1.50093269]
[1736948557647,0.99714428,696.43,694.23,1.50093269]
[1736948557848,0.26419775,696.42,694.23,1.50093269]
[1736948558053,0.26419775,696.41,694.23,1.50093269]
[1736948558247,0.26419775,696.4,694.23,1.50093269]
[1736948558454,0.26419775,696.39,694.23,1.50093269]
[1736948558652,0.26419775,696.38,694.23,1.50093269]
[1736948558857,0.26419775,696.37,694.23,1.50093269]
[1736948559254,0.26419775,696.36,694.23,1.50093269]
[1736948559455,0.26419775,696.36,694.33,0.28804747]
[1736948559655,0.26419775,696.52,694.33,0.28804747]
[1736948559958,0.26413062,696.51,694.33,0.28804747]
[1736948560359,0.26413062,696.5,694.33,0.28804747]
[1736948560563,0.26413062,696.49,694.33,0.28804747]
[1736948560752,0.26413062,696.48,694.33,0.28804747]
[1736948560952,0.26413062,696.47,694.33,0.28804747]
[1736948561255,0.26413062,696.46,694.33,0.28804747]
[1736948561460,0.26413062,696.6,694.33,0.28804747]
[1736948561661,0.26413062,696.45,694.33,0.28804747]
[1736948561861,0.26413062,696.44,694.33,0.28804747]
[1736948562057,0.26413062,696.63,694.33,0.28804747]
[1736948562262,0.26413062,696.43,694.33,0.28804747]
[1736948562562,0.26413062,696.42,694.33,0.28804747]
[1736948562764,0.26413062,696.41,694.33,0.28804747]
[1736948562959,0.26413062,696.58,694.33,0.28804747]
[1736948563158,0.26413062,696.4,694.33,0.28804747]
[1736948563358,0.26413062,696.39,694.33,0.28804747]
[1736948563558,0.26413062,696.38,694.33,0.28804747]
[1736948563859,0.26413062,696.37,694.33,0.28804747]
[1736948564066,1.0636608,696.49,694.33,0.28804747]
[1736948564263,0.26407795,696.48,694.33,0.28804747]
[1736948564463,1.0636608,696.49,694.33,0.28804747]
[1736948564464,0.26407795,696.47,694.33,0.28804747]
[1736948564663,0.26408252,696.46,694.33,0.28804747]
[1736948564864,1.0636608,696.35,694.33,0.28804747]
[1736948565162,0.26408252,696.34,694.33,0.28804747]
[1736948565363,1.0636608,696.35,694.33,0.28804747]
[1736948565364,0.26408252,696.33,694.33,0.28804747]
[1736948565564,0.26408252,696.32,694.33,0.28804747]
[1736948565760,1.32774332,696.31,694.33,0.28804747]
[1736948565967,0.26408252,696.3,694.33,0.28804747]
[1736948566961,1.32774332,696.3,694.33,0.28804747]
[1736948567161,0.26408252,696.29,694.33,0.28804747]
[1736948567364,0.26408252,696.28,694.33,0.28804747]
[1736948567562,1.0636608,696.3,694.33,0.28804747]
[1736948567762,0.2640684,696.29,694.33,0.28804747]
[1736948567969,0.2640684,696.28,694.33,0.28804747]
[1736948568167,1.0636608,696.26,694.42,1.04010507]
[1736948568369,0.2640684,696.25,694.42,1.04010507]
[1736948568568,0.2640684,696.24,694.42,1.04010507]
[1736948568768,0.2640684,696.23,694.42,1.04010507]
[1736948568964,0.2640684,696.22,694.42,1.04010507]
[1736948569171,1.0636608,696.26,694.42,1.04010507]
[1736948569470,1.0636608,696.26,694.53,1.04010507]
[1736948570672,1.0636608,696.48,694.33,0.28804747]
[1736948570871,0.26407701,696.47,694.33,0.28804747]
[1736948571576,1.0636608,696.38,694.33,0.28804747]
[1736948572372,0.26408965,696.37,694.33,0.28804747]
[1736948572875,0.26408965,696.36,694.33,0.28804747]
[1736948573168,0.26408965,696.35,694.33,0.28804747]
[1736948573474,1.0636608,696.24,694.43,1.04010507]
[1736948573873,0.26412716,696.23,694.43,1.04010507]
[1736948574069,1.0636608,696.2,694.38,1.04010507]
[1736948574273,0.26412716,696.19,694.38,1.04010507]
[1736948575069,0.26412719,696.18,694.35,1.04010507]
[1736948575271,1.0636608,696.2,694.35,1.04010507]
[1736948575475,0.2641266,696.19,694.35,1.04010507]
[1736948575770,1.3277874,696.19,694.45,1.04010507]
[1736948575970,0.26412126,696.18,694.45,1.04010507]
[1736948576674,1.0636608,696.19,694.45,1.04010507]
[1736948576874,0.26413766,696.18,694.45,1.04010507]
[1736948577073,0.26413766,696.18,694.48,1.04010507]
[1736948577575,1.0636608,696.19,694.48,1.04010507]
[1736948578174,0.26412827,696.18,694.53,1.04010507]
[1736948578470,0.26412827,696.17,694.53,1.04010507]
[1736948578776,1.0636608,696.23,694.53,1.04010507]
[1736948578975,0.26414754,696.22,694.53,1.04010507]
[1736948579175,1.0636608,696.26,694.6,1.04010507]
[1736948579375,0.26414979,696.25,694.6,1.04010507]
[1736948579977,1.0636608,696.24,694.49,1.04010507]
[1736948580475,0.26413903,696.23,694.49,1.04010507]
[1736948580975,1.0636608,696.24,694.49,1.04010507]
[1736948581575,1.0636608,696.32,694.48,1.04010507]
[1736948581774,0.26415663,696.31,694.48,1.04010507]
[1736948581977,1.0636608,696.32,694.48,1.04010507]
[1736948582674,0.26419864,696.31,694.37,0.28803087]
[1736948583076,0.26419864,696.3,694.37,0.28803087]
[1736948583275,0.26419864,696.29,694.37,0.28803087]
[1736948583477,0.26422865,696.28,694.37,0.28803087]
[1736948583674,1.0636608,696.04,694.38,1.04010507]
[1736948583877,0.26422865,696.03,694.38,1.04010507]
[1736948584077,1.0636608,696.04,694.38,1.04010507]
[1736948584579,1.0636608,696.58,694.37,0.28803087]
[1736948585177,0.26421177,696.57,694.37,0.28803087]
[1736948585471,0.26421177,696.56,694.37,0.28803087]
[1736948585677,0.26421177,696.55,694.37,0.28803087]
[1736948585876,0.26421177,696.54,694.37,0.28803087]
[1736948586077,0.26421177,696.53,694.37,0.28803087]
[1736948586280,0.26421177,696.52,694.37,0.28803087]
[1736948586473,0.26421177,696.51,694.37,0.28803087]
[1736948586676,1.0636608,696.58,694.37,0.28803087]